Cogmind - Beta 13 @@@ ROGUE MODE // 2024.04.01 @ 11:48:19 Player: Zaz Result: Destroyed by G-47 Trooper with Particle Gun Performance ------------- Evolutions (0) 0 Regions Visited (1) 200 Robots Destroyed (10) 50 Value Destroyed (231) 231 Prototype IDs (0) 0 Alien Tech Used (0) 0 Bonus (0) 0 TOTAL SCORE: 481 Bonus ------- None Cogmind --------- Core Integrity 0/250 Matter 446/450 Energy 100/100 System Corruption 0% Temperature Cool (12) Movement Walking (120) Location -10/Materials Parts ------- > --- POWER (1) -------- (None) > --- PROPULSION (2) --- Aluminum Leg Aluminum Leg > --- UTILITY (2) ------ Small Storage Unit Large Matter Pod > --- WEAPON (2) ------- Light Assault Rifle Light Assault Rifle > --- INVENTORY (8) ---- Ion Engine Light Ion Engine Light Nuclear Core Aluminum Leg Heat Sink Light Assault Rifle Light Assault Rifle Peak State ------------ > --- POWER ------------ Ion Engine > --- PROPULSION ------- Light Treads Light Treads > --- UTILITY ---------- Small Storage Unit Large Matter Pod > --- WEAPON ----------- Assault Rifle Light Assault Rifle > --- INVENTORY -------- Light Ion Engine [Rating: 7] Favorites ----------- Power Ion Engine Engine Ion Engine Propulsion Light Treads Treads Light Treads Leg Aluminum Leg Utility Small Storage Unit Storage Small Storage Unit Weapon Light Assault Rifle Ballistic Gun Light Assault Rifle Build | -11 -10 ------- Run | Yrd Mat Slots Evolved . | . . Power . | . . Propulsion . | . . Utility . | . . Weapon . | . . Parts Attached 10 | 6 4 Power 1 | 1 . Engine 1 | 1 . Core . | . . Reactor . | . . Propulsion 4 | 2 2 Treads 2 | 2 . Leg 2 | . 2 Wheel . | . . Hover . | . . Flight . | . . Utility 2 | 1 1 Device . | . . Storage 2 | 1 1 Processor . | . . Hackware . | . . Protection . | . . Artifact . | . . Weapon 3 | 2 1 Energy Gun . | . . Energy Cannon . | . . Ballistic Gun 3 | 2 1 Ballistic Cannon . | . . Launcher . | . . Special Weapon . | . . Impact Weapon . | . . Slashing Weapon . | . . Piercing Weapon . | . . Special Melee Weapon . | . . Unidentified Prototypes . | . . Parts Lost 4 | . 4 Power 1 | . 1 Propulsion 2 | . 2 Utility . | . . Weapon 1 | . 1 Highest Loss Streak 3 | . 3 To Critical Strikes . | . . Average Slot Usage (%) 95 | . 95 Engine 13 | . 13 Treads 22 | . 22 Leg 3 | . 3 Storage 27 | . 27 Ballistic Gun 27 | . 27 Naked Turns . | . . Heaviest Build 16 | 13 16 Greatest Support 40 | 40 40 Greatest Overweight (x) 1 | 1 1 Average Overweight (x) . | . . Largest Inventory Capacity 8 | 8 8 Average Capacity 7 | 6 8 Most Carried 8 | 5 8 Average Carried 3 | 2 4 Final Capacity 8 | 8 8 Final Carried 7 | 1 7 Class Distribution -------------------- 100% | Mutant Dominant Class ---------------- Mutant | -10/Materials Resources | -11 -10 ----------- Run | Yrd Mat Matter Collected 666 | 228 438 Remotely . | . . Salvage Created 392 | . 392 Parts 21 | . 21 Haulers Intercepted . | . . Recyclers Shooed 4 | . 4 Parts Field Recycled . | . . Retrieved Matter . | . . Parts Self-Destructed . | . . Prevented . | . . Kills | -11 -10 ------- Run | Yrd Mat Combat Hostiles Destroyed 7 | . 7 Guns 7 | . 7 Classes Destroyed 4 | . 4 Recycler 2 | . 2 Watcher 1 | . 1 Swarmer 2 | . 2 Grunt 5 | . 5 Best Kill Streak 3 | . 3 Combat Bots Only 3 | . 3 Max Kills in Single Turn 1 | . 1 Gunslinging . | . . Exploded . | . . Melee . | . . Uniques/NPCs Destroyed . | . . Combat | -11 -10 -------- Run | Yrd Mat Hostile Shots Fired 103 | . 103 Missed 21 | . 21 Damage Taken 918 | . 918 Core 250 | . 250 Absorbed by Shields . | . . Core Remaining (%) 100 | 100 . Volleys Fired 76 | . 76 Largest 2 | . 2 Hottest 40 | . 40 Shots Fired 149 | . 149 Gun 149 | . 149 Cannon . | . . Launcher . | . . Special . | . . Kinetic 149 | . 149 Thermal . | . . Explosive . | . . Electromagnetic . | . . Robot Hit Streak 6 | . 6 Robot Miss Streak 4 | . 4 Penetration Max . | . . Secondary Targets 1 | . 1 Max Gunslinging Chain 1 | . 1 Shots Hit Robots 84 | . 84 Core Hits 29 | . 29 Critical Kills . | . . Critical Parts Destroyed . | . . Critical Strikes . | . . Melee Attacks . | . . Impact . | . . Slashing . | . . Piercing . | . . Sneak Attacks . | . . Combat Hostiles . | . . Follow-up Attacks . | . . Damage Inflicted 908 | . 908 Guns 894 | . 894 Cannons . | . . Explosions . | . . Melee . | . . Ramming 14 | . 14 Kinetic 894 | . 894 Thermal . | . . Explosive . | . . Electromagnetic . | . . Impact . | . . Slashing . | . . Piercing . | . . Highest Corruption . | . . Average Corruption . | . . Corruption Purged . | . . Corruption Blocked . | . . Overload Shots . | . . Overflow Damage . | . . Projectiles . | . . Explosions . | . . Melee . | . . Knockbacks . | . . Impact . | . . Kinetic . | . . Secondary . | . . Self-Inflicted Damage . | . . Shots . | . . Rammed 5 | . 5 Targets Rammed 5 | . 5 Kicked . | . . Crushed . | . . Highest Temperature 39 | . 39 Average Temperature 13 | . 13 Received Heat Transfer 504 | . 504 Siege Activations . | . . Robots Corrupted . | . . Combat Hostiles . | . . Parts Fried . | . . Impact Corruptions . | . . Robots Melted . | . . Combat Hostiles . | . . Parts Melted . | . . Heat Transferred . | . . Parts Sabotaged . | . . Parts Stolen . | . . Parts Stripped . | . . Power Chain Reactions . | . . Alert | -11 -10 ------- Run | Yrd Mat Peak Influence 109 | . 109 Initial . | . . Average 32 | . 36 Maximum Alert Level . | . . Low Security (%) 100 | 100 100 Level 1 . | . . Level 2 . | . . Level 3 . | . . Level 4 . | . . Level 5 . | . . High Security . | . . Max Security . | . . Squads Dispatched 2 | . 2 Investigation 1 | . 1 Extermination . | . . Reinforcement 1 | . 1 Assault . | . . Garrison . | . . Intercept . | . . Searches Triggered . | . . Construction Impeded . | . . Haulers Reinforced . | . . Active Scanning Responses . | . . Cargo Convoy Interrupts . | . . Stealth | -11 -10 --------- Run | Yrd Mat Distress Signals . | . . Communications Jammed . | . . Distress Signals . | . . Times Spotted 13 | . 13 Peak Tracking Total 3 | . 3 Tactical Retreats 1 | . 1 Traps | -11 -10 ------- Run | Yrd Mat Traps Triggered . | . . Indirectly . | . . Trap Hack Attempts . | . . Triggered . | . . Disarmed . | . . Reprogrammed . | . . Reused . | . . Traps Extracted . | . . Installed . | . . Triggered . | . . Machines | -11 -10 ---------- Run | Yrd Mat Machines Disabled . | . . Max in Single Turn . | . . Machines Repaired . | . . Machines Dismantled . | . . Machines Sabotaged . | . . Overloaded Fab Kills . | . . Hacking | -11 -10 --------- Run | Yrd Mat Machines Accessed 4 | . 4 Terminals 4 | . 4 Fabricators . | . . Repair Stations . | . . Recycling Units . | . . Scanalyzers . | . . Garrison Access . | . . Total Hacks 11 | . 11 Successful 7 | . 7 Failed 4 | . 4 Catastrophic 1 | . 1 Database Lockouts . | . . Manual . | . . Terminals 11 | . 11 Fabricators . | . . Repair Stations . | . . Recycling Units . | . . Scanalyzers . | . . Garrison Access . | . . Terminal Hacks 7 | . 7 Record 1 | . 1 Emergency Access Points 1 | . 1 Alert Level 2 | . 2 Unreport Threat 1 | . 1 Locate Traps 1 | . 1 Zone Layout 1 | . 1 Fabricator Hacks . | . . Repair Station Hacks . | . . Recycling Unit Hacks . | . . Scanalyzer . | . . Garrison Access Hacks . | . . Unauthorized Hacks . | . . Terminals . | . . Fabricators . | . . Repair Stations . | . . Recycling Units . | . . Scanalyzers . | . . Garrison Access . | . . Data Cores Recovered . | . . Used . | . . Hacking Detections 4 | . 4 Full Trace Events 1 | . 1 Feedback Events . | . . Feedback Blocked . | . . Robot Schematics Acquired . | . . Robots Built . | . . Authchips . | . . Time . | . . Total Robot Build Rating . | . . Part Schematics Acquired . | . . Parts Built . | . . Authchips . | . . Time . | . . Total Part Build Rating . | . . Parts Repaired . | . . Time . | . . Parts Recycled . | . . Recycled Matter . | . . Retrieved Matter . | . . Retrieved Components . | . . Parts Scanalyzed . | . . Part Schematics Acquired . | . . Parts Damaged . | . . Bothacking | -11 -10 ------------ Run | Yrd Mat Used RIF Installer . | . . Robots Hacked . | . . Non-combat . | . . Combat . | . . Robot Hacks Applied . | . . Relay Couplers Released . | . . Fabnet Peak Effective % . | . . Robots Rewired . | . . Allies Hacked . | . . Hacks Repelled . | . . Allies | -11 -10 -------- Run | Yrd Mat Total Allies . | . . Largest Group . | . . Highest-Rated Group . | . . Highest-Rated Ally . | . . Total Orders . | . . Ally Attacks . | . . Total Damage . | . . Kills . | . . Allies Corrupted . | . . Allies Melted . | . . Intel | -11 -10 ------- Run | Yrd Mat Robot Analysis Total . | . . Derelict Logs Recovered . | . . Drone Launches . | . . Drone Recoveries . | . . Exploration | -11 -10 ------------- Run | Yrd Mat Turns Passed 667 | 71 596 Spaces Moved 286 | 72 214 Core 51 | 51 . Treads 209 | 21 188 Legs 26 | . 26 Wheels . | . . Hover . | . . Flight . | . . Fastest Speed 50 | 50 120 Average Speed 141 | 82 161 Slowest Speed 190 | 160 190 Overloaded Moves . | . . Propulsion Burnouts . | . . Robots Hopped . | . . Cave-ins Triggered . | . . Exploration Rate (%) 21 | 3 39 Regions Visited 1 Branch Regions . Pre-discovered Areas . | . . Known Exits Taken . | . . Unknown Exits Taken 1 | 1 . Scrap Searched . | . . Spaces Dug . | . . Terrain Destroyed . | . . Melee . | . . Projectile . | . . AOE . | . . Terrain Rammed . | . . Walls Destroyed . | . . Machines Disabled . | . . Actions | -11 -10 --------- Run | Yrd Mat Total 415 | 83 332 Wait 23 | . 23 Move 285 | 71 214 Hop . | . . Pick Up 16 | 6 10 Fast Attach 1 | 1 . Attach 9 | 5 4 Detach . | . . Swap . | . . Drop . | . . Fire 76 | . 76 Melee . | . . Ram . | . . Kick . | . . Crush 5 | . 5 Escape Stasis . | . . Rewire . | . . Trap . | . . Miscellaneous . | . . Route ------- -11/Scrapyard -10/Materials (discovered 2 exits: [*Mat x2]) History --------- Turn | Location | Event 3 | -11/Scrapyard | Discovered new exit (range 16) 72 | -11/Scrapyard | Entered Materials 180 | -10/Materials | Discovered new exit (range 7) 302 | -10/Materials | Build established: Mutant 429 | -10/Materials | Discovered new exit (range 6) 531 | -10/Materials | Core integrity fell below 50% 569 | -10/Materials | Core integrity fell below 20% 595 | -10/Materials | Lost 3 parts (2n1w) 668 | -10/Materials | Destroyed by G-47 Trooper with Particle Gun Last Messages --------------- 00552_ Switching to secondary target: G-34 Mercenary. 00564_ Assault Rifle destroyed. 00572_ G-34 Mercenary destroyed. 00579_ Acquired Aluminum Leg. 00579_ R-06 Scavenger collects Particle Gun. 00583_ R-06 Scavenger collects Lgt. Nuclear Core. 00584_ Acquired Aluminum Leg. 00587_ Destroyed Lgt. Ion Engine. 00590_ Acquired 37 matter. 00592_ R-06 Scavenger destroyed. 00594_ Acquired 70 matter. 00596_ Acquired 40 matter. 00597_ R-06 Scavenger collects Sml. Laser. 00628_ R-06 Scavenger destroyed. 00631_ Acquired 32 matter. 00635_ Acquired Lgt. Nuclear Core. 00653_ Critical hit (Burn: +37). 00655_ Ion Engine destroyed. 00655_ Acquired 9 matter. 00666_ Critical hit (Burn: +37). Map ----- +----------------------------------------------------+ | ???????## #######+## ############# #????? | | ????????# #??# # #???????????# #????? | | ????????# #??# T ! # #???????????# ^ #????? | | ??#######/#### # #?#?????????#^ """ #????? | | ??# ##| # #?#?????????# """ ###### | | ??# """ ## # #?#???????# # """ | | ??# """"" ## """ # #?#???????# #### | | ??# """"" ## """ # #?#???????# # #??? | | ??# """"" ""## """ # #?#???????### #####+##??? | | ??# """ T"## # #?#?????????# # #???? | | ??# ""## # #?#?????????# # """ #???? | | ??# ######## ###?????????# # "T" ##### | | ??######+########## ??^?????? ??# # | | ????# ??^??????????+ # | | ????# < [ T ??^??????????# # | | ????# ##?????????????# # # | | ????####+########## #??????????????# """ # # | | ????# #????## ###?????????????# """ # # | | ????# #?????# # ?????????????# """ # # | | ????# """ #?????# # ?????????????# # # | | ????# """"" #?????# + ?????????????# + # | | ????# """"" #?????# # ?????????????####### # | | ????# """"" #?????# ###???????????????????# # | | ????# """ ####### ########??????????????# # | | ????# # # # #??????????????# # | | ????# + # # @ #??????????????# | | ????########## # #g #??????????????#^^^# | | ?????????????# + !!/g["Y" #??????????????# # | | ?????????????# """ # [%# !""" #??????????????# # | | ?????????????# """ # = # #??????????????? # | | ?????????????# """ # ########??????????????? # | | ?????????????####### #?????????????????????? # | | ???????????????????# #######???????????????? # | | ???????????????????# [!!????????? | | ???????????????????# !!!????????? ? | | ???????????????????# ????????????? | | ???????????????????# ######### ?????????????? | | ???????????????????# #?????????????????????????? | | ???????????????????# #?????????????????????????? | | ???????????????????# #?????????????????????????? | | ???????????????????# #?????????????????????????? | | ???????????????????# +?????????????????????????? | | ???????????????????# #?????????????????????????? | | ???????????????????# #?????????????????????????? | | ???????????????????+ #?????????????????????????? | | ???????????????????##+##?????????????????????????? | | ?????????????????????????????????????????????????? | | ?????????????????????????????????????????????????? | | ?????????????????????????????????????????????????? | | ?????????????????????????????????????????????????? | +----------------------------------------------------+ Best States ------------- Heat Dissipation 25 Energy Generation 10 Energy Capacity 250 Matter Stores 450 Matter Capacity 450 Sight Range 16 Terrain Scan Density 10 Evasion (%) 50 Recoil Reduction 2 Item Schematics ----------------- None Robot Schematics ------------------ None Fabricated ------------ Nothing Alien Tech Used ----------------- None Achievements -------------- Everything Is Under Control Challenges ------------ None Game ------ Seed AluminumShockNanosword Manual? 0 Play Time 00:14:12 Cumulative 5.2 hours Start 2024.04.01 @ 11:30:38 End 2024.04.01 @ 11:48:19 Sessions 1 Manual Loads 0 Difficulty Rogue Special Mode None Game No. 4 Rogue 4 Adventurer 0 Explorer 0 Win Type - Total 0 Types 0/0/0/0/0/0/0/0/0 Lore% 4 Gallery% 8 Achievement% 8 Wizard Run 0 Options --------- Layout 0 ASCII 0 Keyboard 0 Movement Mouse Keybinds 0 Fullscreen 2 Font 20/Terminus Map View 140x60 Zoom Use 0% Tactical HUD 1 Map Filters NONE Filters NONE Steam 1 RUN: 817de195-2c66-434e-a07e-1c55e509f586